bitfinex/quotes_BTCUSD_20240815
["timestamp","ask_amount","ask_price","bid_price","bid_amount"]
[1723697078848,0.99640653,58278.0,58277.0,0.20512219]
[1723697079215,1.37495486,58278.0,58277.0,0.004]
[1723697079426,1.37495486,58278.0,58271.0,0.000822]
[1723697079427,0.496478,58272.0,58271.0,0.000822]
[1723697079663,1.12658556,58272.0,58271.0,0.000822]
[1723697079852,1.366835,58272.0,58271.0,0.000822]
[1723697080588,1.36692988,58272.0,58271.0,0.000822]
[1723697081234,1.36892988,58272.0,58271.0,0.000822]
[1723697081439,1.90173964,58272.0,58271.0,0.005822]
[1723697081688,1.36692988,58272.0,58271.0,0.005822]
[1723697081848,1.36692988,58272.0,58271.0,0.000822]
[1723697082033,1.38092988,58272.0,58271.0,0.001822]
[1723697082235,1.91373964,58272.0,58271.0,0.001822]
[1723697082485,1.92405995,58272.0,58271.0,0.000822]
[1723697083222,1.91005995,58272.0,58271.0,0.000822]
[1723697083463,1.53009405,58272.0,58271.0,0.000822]
[1723697083664,1.54409405,58272.0,58271.0,0.000822]
[1723697083845,1.55209405,58272.0,58271.0,0.001822]
[1723697084242,0.240293,58263.0,58257.0,0.000822]
[1723697084509,0.120149,58261.0,58258.0,0.18171894]
[1723697085261,0.17107563,58261.0,58258.0,0.18171894]
[1723697085667,0.120149,58261.0,58258.0,0.18171894]
[1723697085889,0.17107563,58261.0,58258.0,0.18171894]
[1723697086069,0.078,58260.0,58258.0,0.18171894]
[1723697086272,0.078,58260.0,58259.0,0.03295199]
[1723697086474,0.078,58260.0,58259.0,0.20450653]
[1723697087873,0.078,58260.0,58259.0,0.21150653]
[1723697088631,0.078,58260.0,58259.0,0.21250653]
[1723697089717,0.120149,58261.0,58259.0,0.21250653]
[1723697089919,0.120149,58261.0,58260.0,0.2310452]
[1723697090126,0.0832,58263.0,58260.0,0.2310452]
[1723697090331,0.05087031,58270.0,58267.0,0.120136]
[1723697090539,0.05087031,58276.0,58270.0,0.0751]
[1723697090733,0.26748655,58278.0,58277.0,0.356515]
[1723697090734,0.0009053,58278.0,58277.0,0.356515]
[1723697090954,0.0009053,58278.0,58277.0,0.40795454]
[1723697091154,0.0009053,58278.0,58277.0,0.52806954]
[1723697092106,0.0019053,58278.0,58277.0,0.52806954]
[1723697092452,0.0019053,58278.0,58277.0,0.57118593]
[1723697092673,0.0019053,58278.0,58277.0,0.45107093]
[1723697093570,0.0069053,58278.0,58277.0,0.45107093]
[1723697094077,0.0009053,58278.0,58277.0,0.45107093]
[1723697094215,0.0059053,58278.0,58277.0,0.45107093]
[1723697097011,0.0858053,58278.0,58277.0,0.21467093]
[1723697097471,0.0858053,58278.0,58277.0,0.33478593]
[1723697097472,0.0808053,58278.0,58277.0,0.33478593]
[1723697097683,0.0808053,58278.0,58277.0,0.81141693]
[1723697097684,0.0009053,58278.0,58277.0,0.81141693]
[1723697098044,0.0049053,58278.0,58277.0,1.05364793]
[1723697098194,0.0049053,58278.0,58277.0,0.81141693]
[1723697098719,0.0049053,58278.0,58277.0,0.81441693]
[1723697100135,0.0009053,58278.0,58277.0,0.81441693]
[1723697100537,0.0039053,58278.0,58277.0,0.57418593]
[1723697100755,0.0039053,58278.0,58277.0,0.21767093]
[1723697101012,0.0863053,58278.0,58277.0,0.21767093]
[1723697101761,0.0863053,58278.0,58277.0,0.17455454]
[1723697102161,0.0039053,58278.0,58277.0,0.17455454]
[1723697102369,0.0039053,58278.0,58277.0,0.29466954]
[1723697102572,0.0039053,58278.0,58277.0,0.37276954]
[1723697102772,0.0039053,58278.0,58277.0,0.29466954]
[1723697102950,0.0039053,58278.0,58277.0,0.36218079]
[1723697103157,0.0039053,58278.0,58277.0,0.23906579]
[1723697103360,0.0009053,58278.0,58277.0,0.24206579]
[1723697103787,0.0039053,58278.0,58277.0,0.24206579]
[1723697104337,0.2631183,58278.0,58277.0,0.24206579]
[1723697104586,0.2631183,58278.0,58277.0,0.17455454]
[1723697104712,0.1430053,58278.0,58277.0,0.17455454]
[1723697106330,0.1430053,58278.0,58277.0,0.17155454]
[1723697106459,0.2601183,58278.0,58277.0,0.17155454]
[1723697106665,0.2601183,58278.0,58277.0,0.20372189]
[1723697106872,0.2631183,58278.0,58277.0,0.20372189]
[1723697107063,0.1430053,58278.0,58277.0,0.20372189]
[1723697110295,0.0039053,58278.0,58277.0,0.20372189]
[1723697110552,0.0039053,58278.0,58277.0,0.32383689]
[1723697110962,0.0039053,58278.0,58277.0,0.20372189]
[1723697111945,0.1140153,58280.0,58277.0,0.20372189]
[1723697112295,0.1140153,58280.0,58278.0,0.20393843]
[1723697112976,0.1140153,58280.0,58278.0,0.16743843]
[1723697113280,0.005,58280.0,58279.0,0.0826]
[1723697113655,0.1210143,58281.0,58279.0,0.0826]
[1723697114215,0.005,58280.0,58278.0,0.16743843]
[1723697114419,0.005,58280.0,58279.0,0.03982198]
[1723697114540,0.1210143,58281.0,58279.0,0.03982198]
[1723697114747,0.1270143,58281.0,58279.0,0.03982198]
[1723697115175,0.120109,58280.0,58279.0,0.03982198]
[1723697115420,0.1270123,58281.0,58279.0,0.03982198]
[1723697115620,0.1270123,58281.0,58280.0,0.04056579]
[1723697116174,0.1210123,58281.0,58280.0,0.04056579]
[1723697116385,0.13038239,58281.0,58280.0,0.04056579]
[1723697116503,0.13038236,58281.0,58280.0,0.04056579]
[1723697116709,0.1210123,58281.0,58280.0,0.04056579]
[1723697116908,0.1962123,58281.0,58280.0,0.04056579]
[1723697117323,0.1962123,58281.0,58280.0,0.04156579]
[1723697117324,0.21058304,58281.0,58280.0,0.04156579]
[1723697118153,0.26148069,58281.0,58280.0,0.04156579]
[1723697118369,0.26148069,58281.0,58280.0,0.001]
[1723697119225,0.50169569,58281.0,58280.0,0.001]
[1723697119426,0.26147918,58281.0,58280.0,0.001]
[1723697120118,0.89078645,58281.0,58280.0,0.001]
[1723697120328,0.360334,58279.0,58278.0,0.001]
[1723697120517,1.36897214,58279.0,58278.0,0.001]
[1723697120723,1.37919312,58279.0,58278.0,0.001]
[1723697120924,3.20283551,58279.0,58278.0,0.001]
[1723697121136,0.979182,58272.0,58271.0,0.000822]
[1723697121394,1.49627241,58272.0,58271.0,0.000822]
[1723697122809,1.36907414,58272.0,58271.0,0.000822]
[1723697123022,1.3690712,58272.0,58271.0,0.000822]
[1723697123480,1.36907122,58272.0,58271.0,0.000822]
[1723697123843,1.36907122,58272.0,58271.0,0.006822]
[1723697125231,1.36912824,58272.0,58271.0,0.006822]
[1723697126454,2.64762895,58272.0,58271.0,0.006822]
[1723697126658,2.77478944,58272.0,58271.0,0.006822]
[1723697127119,2.53453744,58272.0,58271.0,0.006822]
[1723697127334,2.02679702,58272.0,58271.0,0.006822]
[1723697127535,2.5345332,58272.0,58271.0,0.006822]
[1723697128562,2.53453413,58272.0,58271.0,0.006822]
[1723697131558,0.240223,58279.0,58271.0,0.006822]
[1723697131559,0.07704749,58287.0,58272.0,0.0041]
[1723697131770,0.01112488,58296.0,58295.0,0.360235]
[1723697131771,0.0009053,58296.0,58295.0,0.360235]
[1723697131977,0.009053,58298.0,58295.0,0.360235]
[1723697131978,0.009053,58298.0,58297.0,0.600372]
[1723697132188,0.009053,58298.0,58297.0,1.176921]
[1723697132618,0.009053,58298.0,58297.0,1.30365934]
[1723697132821,0.009053,58298.0,58297.0,1.35405934]
[1723697134012,0.009053,58298.0,58297.0,1.36805934]
[1723697134234,0.009053,58298.0,58297.0,1.53761388]
[1723697134423,0.010053,58298.0,58297.0,1.14732654]
[1723697135848,0.010053,58298.0,58297.0,0.90717754]
[1723697136097,0.010053,58298.0,58297.0,0.18755454]
[1723697136627,0.010053,58298.0,58297.0,0.30762854]
[1723697137253,0.010053,58298.0,58297.0,0.29362854]
[1723697137636,0.009053,58298.0,58297.0,0.30162854]
[1723697137842,0.009053,58298.0,58297.0,0.17155454]
[1723697138048,0.010053,58298.0,58297.0,0.17355454]
[1723697138267,0.010053,58298.0,58297.0,0.18355454]
[1723697138469,0.009053,58298.0,58297.0,0.18155454]
[1723697138886,0.010053,58298.0,58297.0,0.18355454]
[1723697139144,0.010053,58298.0,58297.0,0.012]
[1723697139145,0.37027,58298.0,58297.0,0.012]
[1723697139482,0.45147,58298.0,58297.0,0.012]
[1723697140040,0.691615,58298.0,58297.0,0.012]
[1723697140449,0.691615,58298.0,58297.0,0.002]
[1723697140649,0.12008,58295.0,58290.0,0.120088]
[1723697141073,0.120081,58294.0,58287.0,0.240187]
[1723697141296,0.120077,58296.0,58290.0,0.120087]
[1723697141542,0.120077,58296.0,58287.0,0.240187]
[1723697141543,0.120077,58296.0,58291.0,0.17155454]
[1723697141892,0.330398,58298.0,58292.0,0.120084]
[1723697141893,0.120074,58297.0,58292.0,0.120084]
[1723697142095,0.002,58295.0,58292.0,0.120084]
[1723697142491,0.210327,58298.0,58293.0,0.120082]
[1723697142695,0.210327,58298.0,58292.0,0.120083]
[1723697142895,0.120075,58297.0,58293.0,0.120082]
[1723697143341,0.210326,58298.0,58293.0,0.120081]
[1723697143976,0.210326,58298.0,58287.0,0.240187]
[1723697143977,0.003,58296.0,58295.0,0.120078]
[1723697144178,0.003,58296.0,58295.0,0.17155454]
[1723697144179,0.00390421,58296.0,58295.0,0.17155454]
[1723697144679,0.00090421,58296.0,58295.0,0.17155454]
[1723697145510,0.00090421,58296.0,58295.0,0.77194654]
[1723697145713,0.00390421,58296.0,58295.0,0.77394654]
[1723697145913,0.00390421,58296.0,58295.0,1.03710354]
[1723697146953,0.00390421,58296.0,58295.0,1.03910354]
[1723697147089,0.00390421,58296.0,58295.0,1.13710354]
[1723697147493,0.00390421,58296.0,58295.0,1.14615654]
[1723697147985,0.00390421,58296.0,58295.0,1.14415654]
[1723697148186,0.00090421,58296.0,58295.0,1.14415654]
[1723697148617,0.00090421,58296.0,58295.0,1.14615654]
[1723697148816,0.00090421,58296.0,58295.0,1.15415654]
[1723697152493,0.009053,58298.0,58297.0,0.36081479]
[1723697152688,0.009053,58298.0,58297.0,0.89176933]
[1723697152968,0.009053,58298.0,58297.0,1.13191833]
[1723697154097,0.009053,58298.0,58297.0,1.13691833]
[1723697155650,0.009053,58298.0,58297.0,0.89676933]
[1723697156428,0.009053,58298.0,58297.0,1.13691833]
[1723697157303,0.009053,58298.0,58297.0,1.13191833]
[1723697157742,0.009053,58298.0,58297.0,1.13691833]
[1723697157938,0.009053,58298.0,58297.0,1.13191833]
[1723697158310,0.009053,58298.0,58297.0,1.14591833]
[1723697158514,0.010053,58298.0,58297.0,1.14791833]
[1723697158712,0.075553,58298.0,58297.0,0.42454633]
[1723697159236,0.075553,58298.0,58297.0,0.54462033]
[1723697159649,0.075553,58298.0,58297.0,0.42454633]
[1723697160428,0.075553,58298.0,58297.0,0.54462033]
[1723697162765,0.075553,58298.0,58297.0,0.78476933]
[1723697163615,0.010053,58298.0,58297.0,0.78476933]
[1723697164144,0.010053,58298.0,58297.0,1.02491833]
[1723697164918,0.010053,58298.0,58297.0,1.04791833]
[1723697165345,0.010053,58298.0,58297.0,1.28806733]
[1723697167303,0.010053,58298.0,58297.0,1.29847904]
[1723697168453,0.010053,58298.0,58297.0,1.39847904]
[1723697168844,0.01321038,58319.0,58307.0,1.320594]
[1723697169059,0.51466362,58336.0,58324.0,0.460057]
[1723697169257,0.51466362,58336.0,58335.0,0.599982]
[1723697169461,0.51466362,58336.0,58335.0,1.076375]
[1723697169683,0.0774,58338.0,58336.0,0.359983]
[1723697169891,0.0774,58338.0,58336.0,0.839961]
[1723697170102,0.0774,58338.0,58336.0,0.862961]
[1723697170309,0.00904201,58337.0,58336.0,0.862961]
[1723697170923,0.01004201,58337.0,58336.0,0.864961]
[1723697171824,0.01004201,58337.0,58336.0,0.624972]
[1723697173653,0.01004201,58337.0,58336.0,0.627972]
[1723697174213,0.01004201,58337.0,58336.0,0.79952654]
[1723697175256,0.01004201,58337.0,58336.0,1.03951554]
[1723697177782,0.01004201,58337.0,58336.0,0.79952654]
[1723697182474,0.00167239,58351.0,58337.0,0.0255]
[1723697182871,0.00904201,58357.0,58354.0,0.699787]
[1723697183079,0.00904201,58357.0,58354.0,1.062702]
[1723697183304,0.00904201,58357.0,58356.0,0.601765]
[1723697183459,0.51466362,58373.0,58356.0,0.601765]
[1723697183460,0.51466362,58373.0,58372.0,0.359761]
[1723697183681,0.51466362,58373.0,58372.0,0.596161]
[1723697183880,0.0812,58375.0,58372.0,0.40795454]
[1723697184033,0.0777,58373.0,58366.0,0.239862]
[1723697184234,0.197619,58373.0,58368.0,0.119928]
[1723697184439,0.0777,58373.0,58371.0,0.119921]
[1723697184661,0.0777,58373.0,58369.0,0.29147954]
[1723697184860,0.0777,58373.0,58371.0,0.119922]
[1723697185523,0.1396,58372.0,58365.0,0.3364]
[1723697185762,0.0777,58370.0,58365.0,0.17155454]
[1723697185973,0.0777,58370.0,58369.0,0.119926]
[1723697186145,0.0777,58370.0,58369.0,0.29148054]
[1723697187228,0.0777,58370.0,58369.0,0.53133354]
[1723697187633,0.0777,58370.0,58369.0,0.79518654]
[1723697187843,0.0777,58370.0,58369.0,0.79418654]
[1723697187979,0.0777,58370.0,58369.0,0.55433354]
[1723697188182,0.0777,58370.0,58369.0,0.77118654]
[1723697188385,0.0777,58370.0,58369.0,0.53133354]
[1723697188587,0.0777,58370.0,58369.0,0.77118654]
[1723697188992,0.0777,58370.0,58369.0,0.77318654]
[1723697189208,0.0777,58370.0,58369.0,0.53333354]
[1723697189406,0.0777,58370.0,58369.0,0.29148054]
[1723697189885,0.0777,58370.0,58369.0,0.29648054]
[1723697190217,0.0777,58370.0,58369.0,0.17655454]
[1723697190421,0.0777,58370.0,58369.0,0.005]
[1723697190632,0.197624,58370.0,58369.0,0.005]
[1723697190855,0.07860421,58370.0,58369.0,0.124926]
[1723697191061,0.07860421,58370.0,58369.0,0.005]
[1723697191210,0.07860421,58370.0,58369.0,0.004]
[1723697191682,0.239861,58368.0,58359.0,0.576292]
[1723697191889,0.0768,58367.0,58363.0,0.119937]
[1723697192092,0.0768,58367.0,58364.0,0.17155454]
[1723697192234,0.19673,58367.0,58364.0,0.17155454]
[1723697192430,0.239865,58366.0,58359.0,0.3364]
[1723697192633,0.239865,58366.0,58360.0,0.39149854]
[1723697192634,0.119937,58364.0,58360.0,0.39149854]
[1723697192842,0.1493,58365.0,58361.0,0.119941]
[1723697193084,0.1493,58365.0,58362.0,0.17155454]
[1723697193290,0.1493,58365.0,58364.0,0.119936]
[1723697193460,0.1493,58365.0,58363.0,0.119938]
[1723697193681,0.1493,58365.0,58363.0,0.17155454]
[1723697193882,0.269235,58365.0,58363.0,0.17155454]
[1723697194291,0.1493,58365.0,58363.0,0.17155454]
[1723697194526,0.0828,58364.0,58362.0,0.03]
[1723697194722,0.08577727,58366.0,58362.0,0.03]
[1723697194723,0.509117,58363.0,58362.0,0.03]
[1723697194922,0.359829,58361.0,58360.0,0.004]
[1723697195273,0.682515,58361.0,58360.0,0.004]
[1723697195680,0.119954,58356.0,58352.0,0.2364]
[1723697195888,0.119954,58356.0,58353.0,0.17155454]
[1723697196096,0.0828,58360.0,58355.0,0.119955]
[1723697196507,0.0828,58360.0,58353.0,0.17155454]
[1723697196717,0.0828,58360.0,58358.0,0.2364]
[1723697196934,0.0828,58360.0,58358.0,0.356349]
[1723697197107,0.0828,58360.0,58359.0,0.29150154]
[1723697197335,0.0828,58360.0,58359.0,0.17155454]
[1723697197488,0.0838,58360.0,58359.0,0.17155454]
[1723697197892,0.0828,58360.0,58359.0,0.17155454]
[1723697198286,0.0918,58360.0,58359.0,0.17155454]
[1723697198483,0.119947,58359.0,58358.0,0.2364]
[1723697198683,0.201847,58359.0,58358.0,0.2364]
[1723697198942,0.441741,58359.0,58358.0,0.2364]
[1723697199170,0.0819,58357.0,58353.0,0.119957]
[1723697199418,0.201851,58357.0,58354.0,0.17155454]
[1723697199670,0.0819,58357.0,58353.0,0.29151254]
[1723697200109,0.201852,58357.0,58353.0,0.29151254]
[1723697200529,0.202852,58357.0,58353.0,0.29151254]
[1723697200678,0.201852,58357.0,58353.0,0.29151254]
[1723697201084,0.202852,58357.0,58353.0,0.29151254]
[1723697201446,0.0829,58357.0,58354.0,0.119956]
[1723697201641,0.0829,58357.0,58353.0,0.41147254]
[1723697201642,0.0839,58357.0,58355.0,0.119953]
[1723697202087,0.0839,58357.0,58356.0,0.119953]
[1723697202286,0.0859,58357.0,58354.0,0.119956]
[1723697202687,0.004,58357.0,58356.0,0.359859]
[1723697202885,0.0792,58364.0,58362.0,0.359823]
[1723697203096,0.0792,58364.0,58362.0,0.77125954]
[1723697204140,0.5396,58365.0,58362.0,1.01114154]
[1723697204321,0.4764,58365.0,58362.0,1.03414154]
[1723697204527,1.2795,58363.0,58362.0,1.03514154]
[1723697205250,1.2835,58363.0,58362.0,1.03514154]
[1723697205688,1.2795,58363.0,58362.0,1.03514154]
[1723697206078,1.2805,58363.0,58362.0,1.04314154]
[1723697206282,1.2795,58363.0,58362.0,1.04214154]
[1723697206484,1.2785,58363.0,58362.0,1.03514154]
[1723697206872,0.0798,58368.0,58367.0,0.359791]
[1723697207085,0.0798,58368.0,58367.0,0.53134554]
[1723697207268,0.0798,58368.0,58367.0,0.77120654]
[1723697207861,0.0798,58368.0,58367.0,0.53134554]
[1723697208274,0.0808,58368.0,58367.0,0.53134554]
[1723697208679,0.0808,58368.0,58367.0,0.29148454]
[1723697208883,0.001,58368.0,58367.0,0.77120654]
[1723697209616,0.001,58368.0,58367.0,0.77320654]
[1723697210188,0.0656,58369.0,58368.0,0.599642]
[1723697210394,0.0656,58369.0,58368.0,0.77119654]
[1723697210603,0.0656,58369.0,58368.0,0.79419654]
[1723697211605,0.0666,58369.0,58368.0,0.79419654]
[1723697211765,0.0666,58369.0,58368.0,0.79519654]
[1723697212588,0.001,58369.0,58368.0,1.13505354]
[1723697224190,7.2439991,58374.0,58373.0,0.59959]
[1723697224389,7.2439991,58374.0,58373.0,1.27038054]
[1723697224638,7.2439991,58374.0,58373.0,1.37038054]
[1723697224844,7.2439991,58374.0,58373.0,1.61021654]
[1723697225255,7.2439991,58374.0,58373.0,1.61221654]
[1723697225454,7.2479991,58374.0,58373.0,1.61221654]
[1723697225745,7.2479991,58374.0,58373.0,1.61421654]
[1723697226299,7.2479991,58374.0,58373.0,1.61221654]
[1723697226702,7.2439991,58374.0,58373.0,1.61221654]
[1723697226966,7.2439991,58374.0,58373.0,1.62751898]
[1723697227368,7.2439991,58374.0,58373.0,1.62951898]
[1723697227579,7.24490221,58374.0,58373.0,1.62251898]
[1723697227707,7.24490221,58374.0,58373.0,1.62051898]
[1723697227913,7.24590221,58374.0,58373.0,1.40468298]
[1723697228536,7.24590221,58374.0,58373.0,1.64651898]
[1723697230148,7.24590221,58374.0,58373.0,1.90841898]
[1723697230149,6.09490221,58374.0,58373.0,1.90841898]
[1723697230349,6.09490221,58374.0,58373.0,2.14825498]
[1723697230566,6.09490221,58374.0,58373.0,1.91185498]
[1723697230781,4.19255623,58374.0,58373.0,2.66809098]
[1723697230987,3.86131715,58374.0,58373.0,2.93137749]
[1723697231210,3.61274932,58374.0,58373.0,3.27759312]
[1723697231408,3.57848732,58374.0,58373.0,3.12544682]
[1723697231544,3.57848732,58374.0,58373.0,2.86918725]
[1723697231746,3.57748732,58374.0,58373.0,2.89731263]
[1723697231944,3.57748732,58374.0,58373.0,2.87018725]
[1723697232403,3.40617732,58374.0,58373.0,2.85618725]
[1723697232608,3.40617732,58374.0,58373.0,2.87018725]
[1723697232804,3.40617732,58374.0,58373.0,2.69246098]
[1723697233010,3.40617732,58374.0,58373.0,2.87419157]
[1723697233226,3.33765332,58374.0,58373.0,2.87419157]
[1723697233429,3.23486732,58374.0,58373.0,2.87419157]
[1723697233764,3.21617732,58374.0,58373.0,2.63379157]
[1723697233965,3.18609732,58374.0,58373.0,2.61979157]
[1723697234166,3.08331132,58374.0,58373.0,2.61979157]
[1723697234371,3.01478732,58374.0,58373.0,2.64779157]
[1723697234621,3.01478732,58374.0,58373.0,2.64779116]
[1723697234763,1.66895466,58374.0,58373.0,2.49006098]
[1723697234946,1.59532141,58374.0,58373.0,2.69899699]
[1723697235178,1.49253541,58374.0,58373.0,2.69899699]
[1723697235403,1.42401141,58374.0,58373.0,2.93539699]
[1723697235602,1.42401141,58374.0,58373.0,2.71299699]
[1723697236095,1.42401141,58374.0,58373.0,2.69299699]
[1723697236285,1.35548741,58374.0,58373.0,2.69299699]
[1723697236591,1.25270141,58374.0,58373.0,3.23299699]
[1723697236808,1.25270141,58374.0,58373.0,2.42299699]
[1723697236965,1.23070141,58374.0,58373.0,3.14299699]
[1723697237176,1.09691541,58374.0,58373.0,3.14299699]
[1723697237415,1.02839141,58374.0,58373.0,2.98526878]
[1723697237564,1.02265606,58374.0,58373.0,3.16299074]
[1723697237759,1.02265606,58374.0,58373.0,2.42299074]
[1723697238164,1.02265606,58374.0,58373.0,2.37778294]
[1723697238586,1.02265606,58374.0,58373.0,3.16778294]
[1723697238849,0.98839406,58374.0,58373.0,2.37778294]
[1723697239053,0.95413206,58374.0,58373.0,2.37778294]
[1723697239204,0.81708406,58374.0,58373.0,2.37778294]
[1723697239419,0.71429806,58374.0,58373.0,2.37778294]
[1723697240060,0.71429806,58374.0,58373.0,2.37860394]
[1723697240872,0.71429806,58374.0,58373.0,2.97860394]
[1723697241043,0.64981606,58374.0,58373.0,2.80088198]
[1723697241249,0.61555406,58374.0,58373.0,2.99861035]
[1723697241427,0.41311406,58374.0,58373.0,3.05397129]
[1723697241645,0.41311406,58374.0,58373.0,3.11094915]
[1723697242081,0.37885206,58374.0,58373.0,3.11094915]
[1723697242283,0.31032806,58374.0,58373.0,3.11094915]
[1723697242916,0.31032806,58374.0,58373.0,3.03397129]
[1723697243385,0.27606606,58374.0,58373.0,3.03397129]
[1723697244598,0.13901806,58374.0,58373.0,3.05397129]
[1723697244903,0.10475606,58374.0,58373.0,3.05397129]
[1723697245105,0.03951406,58374.0,58373.0,3.05397008]
[1723697245327,6e-08,58374.0,58373.0,3.12253608]
[1723697245544,0.0002,58379.0,58378.0,1.490858]
[1723697245545,6e-08,58379.0,58378.0,1.490858]
[1723697245686,6e-08,58379.0,58378.0,2.04891697]
[1723697245891,0.00118398,58384.0,58383.0,1.081077]
[1723697246081,0.00118398,58384.0,58383.0,1.37563154]
[1723697247526,0.14268398,58384.0,58383.0,1.37563154]
[1723697247722,0.14268398,58384.0,58383.0,1.38567877]
[1723697248560,0.14268398,58384.0,58383.0,1.39967877]
[1723697249263,0.14268398,58384.0,58383.0,1.41367877]
[1723697252366,0.14358709,58384.0,58383.0,1.41367877]
[1723697254600,0.00208709,58384.0,58383.0,1.59140451]
[1723697255239,0.00904201,58396.0,58383.0,1.59140451]
[1723697255443,0.00904201,58396.0,58395.0,1.43284281]
[1723697255621,0.00904201,58396.0,58395.0,1.55584281]
[1723697256000,0.14714201,58396.0,58395.0,1.23366554]
[1723697257259,0.14714201,58396.0,58395.0,1.24166554]
[1723697257486,0.14714201,58396.0,58395.0,1.25066554]
[1723697257894,0.14714201,58396.0,58395.0,1.26067088]
[1723697260133,0.14714201,58396.0,58395.0,1.43838179]
[1723697260359,0.14714201,58396.0,58395.0,1.26067088]
[1723697262350,0.14714201,58396.0,58395.0,1.32923088]
[1723697263738,0.14714201,58396.0,58395.0,1.50694078]
[1723697264114,0.14714201,58396.0,58395.0,1.32923088]
[1723697264721,0.14714201,58396.0,58395.0,1.50693914]
[1723697264914,0.14714201,58396.0,58395.0,1.32923088]
[1723697265366,0.14714201,58396.0,58395.0,1.50894019]
[1723697266401,0.14714201,58396.0,58395.0,1.50894015]
[1723697266574,0.14714201,58396.0,58395.0,1.50694015]
[1723697266777,0.14714201,58396.0,58395.0,1.32923088]
[1723697271340,0.14714201,58396.0,58395.0,1.33123088]
[1723697271955,0.14714201,58396.0,58395.0,1.42533088]
[1723697274090,0.14714201,58396.0,58395.0,1.33123088]
[1723697274739,0.14714201,58396.0,58395.0,1.56022922]
[1723697275498,0.14714201,58396.0,58395.0,1.50894016]
[1723697275700,0.14714201,58396.0,58395.0,1.83446343]
[1723697275701,0.00904201,58396.0,58395.0,1.83446343]
[1723697276515,0.00904201,58396.0,58395.0,2.15550623]
[1723697277531,0.00904201,58396.0,58395.0,2.15550621]
[1723697278340,0.00904201,58396.0,58395.0,2.15590814]
[1723697280328,0.00904201,58396.0,58395.0,2.18157436]
[1723697280485,0.00904201,58396.0,58395.0,2.07890949]
[1723697281319,0.00904201,58396.0,58395.0,2.18156393]
[1723697281723,0.00904201,58396.0,58395.0,2.09578666]
[1723697282193,0.00904201,58396.0,58395.0,1.99313222]
[1723697282805,0.00904201,58396.0,58395.0,2.07890949]
[1723697283200,0.00904201,58396.0,58395.0,2.20724057]
[1723697283424,0.00862797,58396.0,58395.0,2.20724057]
[1723697283627,0.00862797,58396.0,58395.0,2.07890949]
[1723697283833,0.00862797,58396.0,58395.0,2.18154511]
[1723697284235,0.00862797,58396.0,58395.0,2.09576784]
[1723697285569,0.00862797,58396.0,58395.0,1.91806691]
[1723697285775,0.00862797,58396.0,58395.0,2.09575981]
[1723697286177,0.00862797,58396.0,58395.0,2.09393701]
[1723697288646,0.00828759,58396.0,58395.0,1.91624411]
[1723697288841,0.00828759,58396.0,58395.0,1.85219101]
[1723697289053,0.14588759,58396.0,58395.0,1.49792378]
[1723697289249,0.14588759,58396.0,58395.0,0.73173888]
[1723697289552,0.14588759,58396.0,58395.0,0.62373888]
[1723697289773,0.14588759,58396.0,58395.0,0.61373354]
[1723697289972,0.14588759,58396.0,58395.0,0.59973354]
[1723697290148,0.14588759,58396.0,58395.0,0.61373354]
[1723697290387,0.14588759,58396.0,58395.0,0.26511454]
[1723697290600,0.15529028,58396.0,58395.0,0.011]
[1723697290796,0.1376,58395.0,58394.0,0.03]
[1723697290974,0.14700269,58395.0,58394.0,0.20155454]
[1723697291778,0.14700204,58395.0,58394.0,0.20155454]
[1723697292268,0.1376,58395.0,58394.0,1.04067954]
[1723697292472,0.1376,58395.0,58394.0,1.14067954]
[1723697292868,0.13717456,58395.0,58394.0,0.90092954]
[1723697293069,0.13717456,58395.0,58394.0,0.92392954]
[1723697293204,0.13717456,58395.0,58394.0,0.92413569]
[1723697293790,0.13717456,58395.0,58394.0,0.93013569]
[1723697294006,0.13717456,58395.0,58394.0,0.94041273]
[1723697294428,0.13717456,58395.0,58394.0,0.70466273]
[1723697295029,0.13717456,58395.0,58394.0,0.44191273]
[1723697295638,0.13717456,58395.0,58394.0,0.43163569]
[1723697295845,0.13717456,58395.0,58394.0,0.31176069]
[1723697296053,0.13717456,58395.0,58394.0,0.43163569]
[1723697296463,0.13717456,58395.0,58394.0,0.31176069]
[1723697298440,0.13717456,58395.0,58394.0,0.43163569]
[1723697299405,0.13717456,58395.0,58394.0,0.67138569]
[1723697299613,0.13717456,58395.0,58394.0,0.93413569]
[1723697300676,0.13717456,58395.0,58394.0,0.69438569]
[1723697301323,0.13717456,58395.0,58394.0,0.93413569]
[1723697301484,0.13717456,58395.0,58394.0,1.02833569]
[1723697301689,0.13717456,58395.0,58394.0,1.02915769]
[1723697302096,0.13807877,58395.0,58394.0,1.02915769]
[1723697306174,0.13807877,58395.0,58394.0,0.93495769]
[1723697310496,0.13807877,58395.0,58394.0,1.02915769]
[1723697315593,0.13807877,58395.0,58394.0,1.26890769]
[1723697320372,0.00828759,58396.0,58395.0,0.599365]
[1723697320580,0.0002,58399.0,58398.0,0.119867]
[1723697320781,0.0002,58399.0,58398.0,1.46755754]
[1723697320985,0.0002,58399.0,58398.0,1.64527995]
[1723697321546,0.0002,58399.0,58398.0,1.64727995]
[1723697322005,0.0002,58399.0,58398.0,1.64724644]
[1723697322226,0.0002,58399.0,58398.0,1.66124644]
[1723697322433,0.0803,58412.0,58408.0,0.0942]
[1723697322606,0.0803,58412.0,58404.0,0.1]
[1723697322607,0.0803,58412.0,58411.0,0.0942]
[1723697322762,0.0803,58412.0,58411.0,0.28875454]
[1723697323153,0.0803,58412.0,58411.0,1.12763454]
[1723697323412,0.0803,58412.0,58411.0,1.32763454]
[1723697323629,0.0803,58412.0,58411.0,1.56731454]
[1723697324391,0.0803,58412.0,58411.0,1.57758247]
[1723697324592,0.00904201,58414.0,58413.0,0.838852]
[1723697324772,0.00904201,58414.0,58413.0,1.13340654]
[1723697325763,0.00904201,58414.0,58413.0,1.13640654]
[1723697326210,0.00904201,58414.0,58413.0,1.13840654]
[1723697330714,0.00904201,58414.0,58413.0,1.13340654]
[1723697331119,0.00904201,58414.0,58413.0,1.14840654]
[1723697333329,0.00904201,58414.0,58413.0,1.21694654]
[1723697335477,0.08774201,58414.0,58413.0,0.97727454]
[1723697340026,0.08774201,58414.0,58413.0,1.07347454]
[1723697340383,0.08774201,58414.0,58413.0,1.31314654]
[1723697341662,0.00904201,58414.0,58413.0,1.31314654]
[1723697342063,0.00904201,58414.0,58413.0,1.31114654]
[1723697343042,0.00904201,58414.0,58413.0,1.31314654]
[1723697343459,0.00904201,58414.0,58413.0,1.31114654]